[Event "*** Titled Tuesday Blitz"]
[Site "Chess.com"]
[Date "2020.04.28"]
[Round "5"]
[White "benko_008"]
[Black "Biranidun"]
[Result "0-1"]
[WhiteElo "2512"]
[BlackElo "2714"]
[TimeControl "180+1"]
[EndTime "10:56:07 PDT"]
[Termination "Biranidun won on time"]

1. Nf3 {[%clk 0:03:00.9]} 1... Nf6 {[%clk 0:02:59.2]} 2. c4 {[%clk 0:02:58.5]}
2... g6 {[%clk 0:02:59.5]} 3. Nc3 {[%clk 0:02:58.6]} 3... d5 {[%clk 0:02:59]} 4.
cxd5 {[%clk 0:02:57.9]} 4... Nxd5 {[%clk 0:02:58.6]} 5. Qa4+ {[%clk 0:02:58.4]}
5... Bd7 {[%clk 0:02:55.9]} 6. Qh4 {[%clk 0:02:56.2]} 6... Nxc3 {[%clk 0:02:56]}
7. dxc3 {[%clk 0:02:55.7]} 7... Nc6 {[%clk 0:02:56]} 8. Bf4 {[%clk 0:02:54.7]}
8... f6 {[%clk 0:02:53.9]} 9. Bh6 {[%clk 0:02:54.2]} 9... e5 {[%clk 0:02:54.1]}
10. e4 {[%clk 0:02:44.3]} 10... Be6 {[%clk 0:02:40.3]} 11. Bb5 {[%clk
0:02:38.9]} 11... Kf7 {[%clk 0:02:29]} 12. Bxf8 {[%clk 0:02:30.3]} 12... Qxf8
{[%clk 0:02:27.3]} 13. O-O {[%clk 0:02:09.1]} 13... Qc5 {[%clk 0:02:24.5]} 14.
Ba4 {[%clk 0:01:59.7]} 14... Qb6 {[%clk 0:02:03.8]} 15. Qh6 {[%clk 0:01:47.4]}
15... Ne7 {[%clk 0:01:59.1]} 16. Rfd1 {[%clk 0:01:21.8]} 16... c6 {[%clk
0:01:47.1]} 17. Rd2 {[%clk 0:01:15.3]} 17... Rad8 {[%clk 0:01:27.2]} 18. Rxd8
{[%clk 0:01:12.7]} 18... Qxd8 {[%clk 0:01:28.1]} 19. Rd1 {[%clk 0:01:12.4]}
19... Qf8 {[%clk 0:01:26.6]} 20. Qe3 {[%clk 0:01:11.7]} 20... b6 {[%clk
0:01:11.8]} 21. h3 {[%clk 0:01:09.9]} 21... g5 {[%clk 0:01:08.8]} 22. Bb3 {[%clk
0:01:07.8]} 22... Qc8 {[%clk 0:01:08.6]} 23. Nh2 {[%clk 0:01:05.6]} 23... h5
{[%clk 0:01:07.8]} 24. Nf1 {[%clk 0:01:03.8]} 24... h4 {[%clk 0:00:53.5]} 25.
Rd6 {[%clk 0:00:58.1]} 25... Bxb3 {[%clk 0:00:51.7]} 26. axb3 {[%clk 0:00:59]}
26... Rd8 {[%clk 0:00:39.3]} 27. Qd3 {[%clk 0:00:58.4]} 27... Rxd6 {[%clk
0:00:39.2]} 28. Qxd6 {[%clk 0:00:57.9]} 28... Qe6 {[%clk 0:00:40.1]} 29. Qc7
{[%clk 0:00:53.7]} 29... Qxb3 {[%clk 0:00:37.4]} 30. Ne3 {[%clk 0:00:53.4]}
30... Ke6 {[%clk 0:00:29]} 31. Qxa7 {[%clk 0:00:44.4]} 31... Qxb2 {[%clk
0:00:26.3]} 32. Qc7 {[%clk 0:00:25.4]} 32... Qxc3 {[%clk 0:00:15.7]} 33. Kh2
{[%clk 0:00:17.3]} 33... Qd4 {[%clk 0:00:13.8]} 34. Nf5 {[%clk 0:00:05.9]} 34...
Nxf5 {[%clk 0:00:12.3]} 35. Qc8+ {[%clk 0:00:06.1]} 35... Qd7 {[%clk 0:00:04.9]}
36. Qg8+ {[%clk 0:00:04.9]} 36... Kd6 {[%clk 0:00:05.8]} 37. exf5 {[%clk
0:00:03.8]} 37... Qxf5 {[%clk 0:00:05.5]} 38. Qf8+ {[%clk 0:00:03.7]} 38... Kd5
{[%clk 0:00:05.4]} 39. Qd8+ {[%clk 0:00:03]} 39... Kc5 {[%clk 0:00:05.8]} 40.
Qe7+ {[%clk 0:00:02.8]} 40... Kb5 {[%clk 0:00:05.4]} 41. Qa3 {[%clk 0:00:02.4]}
41... Qf4+ {[%clk 0:00:05.3]} 42. Kg1 {[%clk 0:00:01.4]} 42... Qd4 {[%clk
0:00:05.5]} 0-1

[Event "*** Titled Tuesday Blitz"]
[Site "Chess.com"]
[Date "2020.04.28"]
[Round "5"]
[White "PauloCesarCosta_sad"]
[Black "MariaFominykh"]
[Result "1/2-1/2"]
[WhiteElo "2134"]
[BlackElo "2358"]
[TimeControl "180+1"]
[EndTime "10:56:07 PDT"]
[Termination "Game drawn by agreement"]

1. Nf3 {[%clk 0:03:00.9]} 1... Nf6 {[%clk 0:02:58.8]} 2. c4 {[%clk 0:03:00.6]}
2... g6 {[%clk 0:02:54.6]} 3. Nc3 {[%clk 0:03:00.6]} 3... Bg7 {[%clk 0:02:02.9]}
4. g3 {[%clk 0:02:59.6]} 4... O-O {[%clk 0:02:02.8]} 5. Bg2 {[%clk 0:03:00.1]}
5... d6 {[%clk 0:02:03.2]} 6. d4 {[%clk 0:03:00.2]} 6... Nc6 {[%clk 0:02:02.4]}
7. O-O {[%clk 0:03:00]} 7... a6 {[%clk 0:02:02.6]} 8. Re1 {[%clk 0:02:38.1]}
8... Bd7 {[%clk 0:02:02.6]} 9. e4 {[%clk 0:02:28.9]} 9... e5 {[%clk 0:02:01.3]}
10. d5 {[%clk 0:02:22.7]} 10... Ne7 {[%clk 0:02:00.5]} 11. c5 {[%clk 0:02:23.3]}
11... Nh5 {[%clk 0:01:51.2]} 12. Qb3 {[%clk 0:02:14.7]} 12... b5 {[%clk
0:01:30]} 13. c6 {[%clk 0:02:06.5]} 13... Bg4 {[%clk 0:01:29]} 14. a4 {[%clk
0:02:06.6]} 14... bxa4 {[%clk 0:01:25.1]} 15. Rxa4 {[%clk 0:01:57.2]} 15... Qc8
{[%clk 0:01:16.1]} 16. Qb7 {[%clk 0:01:46.7]} 16... Qxb7 {[%clk 0:01:06.6]} 17.
cxb7 {[%clk 0:01:46.8]} 17... Ra7 {[%clk 0:01:03.7]} 18. h3 {[%clk 0:01:45.9]}
18... Bd7 {[%clk 0:00:56.7]} 19. Ra5 {[%clk 0:01:37.3]} 19... Rb8 {[%clk
0:00:54.3]} 20. Bf1 {[%clk 0:01:31.4]} 20... Rbxb7 {[%clk 0:00:48]} 21. Rxa6
{[%clk 0:01:30.3]} 21... Rxa6 {[%clk 0:00:43.8]} 22. Bxa6 {[%clk 0:01:30.2]}
22... Rb6 {[%clk 0:00:39.6]} 23. Bf1 {[%clk 0:01:23.5]} 23... f5 {[%clk
0:00:39.3]} 24. exf5 {[%clk 0:01:16.7]} 24... gxf5 {[%clk 0:00:40.2]} 25. Bc4
{[%clk 0:01:16.7]} 25... Nf6 {[%clk 0:00:40]} 26. Nxe5 {[%clk 0:01:10]} 26...
dxe5 {[%clk 0:00:28.3]} 27. d6+ {[%clk 0:01:09.4]} 27... Kf8 {[%clk 0:00:27.7]}
28. dxe7+ {[%clk 0:01:01.5]} 28... Kxe7 {[%clk 0:00:28.6]} 29. Rxe5+ {[%clk
0:01:01.9]} 29... Kd6 {[%clk 0:00:25.8]} 30. Bf4 {[%clk 0:00:54.8]} 30... Nh5
{[%clk 0:00:21.9]} 31. Rd5+ {[%clk 0:00:44.3]} 31... Kc6 {[%clk 0:00:20.8]} 32.
Be3 {[%clk 0:00:36.6]} 32... Rxb2 {[%clk 0:00:18.7]} 33. Nb5 {[%clk 0:00:31]}
33... Be6 {[%clk 0:00:16.5]} 34. Rc5+ {[%clk 0:00:26.6]} 34... Kd7 {[%clk
0:00:15.5]} 35. Rxc7+ {[%clk 0:00:17.7]} 35... Kd8 {[%clk 0:00:13.7]} 36. Bxe6
{[%clk 0:00:17.4]} 36... Rb1+ {[%clk 0:00:11.3]} 37. Kg2 {[%clk 0:00:16.7]}
37... Rxb5 {[%clk 0:00:11.9]} 38. Ra7 {[%clk 0:00:12.5]} 38... Bf6 {[%clk
0:00:10.2]} 39. Ra8+ {[%clk 0:00:09.6]} 39... Ke7 {[%clk 0:00:09.4]} 40. Bc4
{[%clk 0:00:10.5]} 40... Rb7 {[%clk 0:00:08.1]} 41. Ra7 {[%clk 0:00:08.8]} 41...
Rxa7 {[%clk 0:00:07.6]} 42. Bxa7 {[%clk 0:00:09.7]} 42... f4 {[%clk 0:00:08.3]}
43. Be2 {[%clk 0:00:07.8]} 43... Ng7 {[%clk 0:00:05]} 44. gxf4 {[%clk 0:00:07]}
1/2-1/2

[Event "*** Titled Tuesday Blitz"]
[Site "Chess.com"]
[Date "2020.04.28"]
[Round "5"]
[White "karwowskikacper"]
[Black "Tynano"]
[Result "1-0"]
[WhiteElo "2339"]
[BlackElo "2142"]
[TimeControl "180+1"]
[EndTime "10:56:07 PDT"]
[Termination "karwowskikacper won by resignation"]

1. b3 {[%clk 0:00:53.1]} 1... e5 {[%clk 0:02:57.8]} 2. Bb2 {[%clk 0:00:54]} 2...
Nc6 {[%clk 0:02:57.3]} 3. e3 {[%clk 0:00:54.9]} 3... Nf6 {[%clk 0:02:56.2]} 4.
Ne2 {[%clk 0:00:51.2]} 4... Be7 {[%clk 0:02:55.1]} 5. d4 {[%clk 0:00:52.1]} 5...
d6 {[%clk 0:02:52]} 6. dxe5 {[%clk 0:00:52.3]} 6... dxe5 {[%clk 0:02:52.3]} 7.
Qxd8+ {[%clk 0:00:53.2]} 7... Bxd8 {[%clk 0:02:52.6]} 8. Nbc3 {[%clk 0:00:53.4]}
8... O-O {[%clk 0:02:52.5]} 9. f3 {[%clk 0:00:54]} 9... a6 {[%clk 0:02:49.4]}
10. Kf2 {[%clk 0:00:53.8]} 10... Be6 {[%clk 0:02:48.3]} 11. h3 {[%clk
0:00:54.1]} 11... Nb4 {[%clk 0:02:44]} 12. Rc1 {[%clk 0:00:53.4]} 12... c5
{[%clk 0:02:43.8]} 13. a3 {[%clk 0:00:53.8]} 13... Nc6 {[%clk 0:02:39.6]} 14. g4
{[%clk 0:00:54.2]} 14... Bc7 {[%clk 0:02:39.2]} 15. Bg2 {[%clk 0:00:54]} 15...
b5 {[%clk 0:02:34.8]} 16. a4 {[%clk 0:00:52.9]} 16... b4 {[%clk 0:02:34.4]} 17.
Nb1 {[%clk 0:00:52.3]} 17... Rac8 {[%clk 0:02:31.8]} 18. Nd2 {[%clk 0:00:52.1]}
18... Bb8 {[%clk 0:02:18]} 19. Rhd1 {[%clk 0:00:50.9]} 19... h5 {[%clk
0:02:13.5]} 20. g5 {[%clk 0:00:50.7]} 20... Ne8 {[%clk 0:02:12.3]} 21. h4 {[%clk
0:00:51.6]} 21... f6 {[%clk 0:02:11.7]} 22. Ne4 {[%clk 0:00:51.9]} 22... Na5
{[%clk 0:02:04.4]} 23. N2g3 {[%clk 0:00:43.2]} 23... c4 {[%clk 0:02:02.7]} 24.
bxc4 {[%clk 0:00:41.7]} 24... Nxc4 {[%clk 0:02:02.1]} 25. Ba1 {[%clk 0:00:37.8]}
25... Ba7 {[%clk 0:02:02.3]} 26. Rd3 {[%clk 0:00:34.8]} 26... f5 {[%clk
0:02:00.6]} 27. Nd2 {[%clk 0:00:29]} 27... f4 {[%clk 0:01:58.2]} 28. Ngf1 {[%clk
0:00:26.8]} 28... Bf5 {[%clk 0:01:34.5]} 29. Nxc4 {[%clk 0:00:25.5]} 29... Rxc4
{[%clk 0:01:31.4]} 30. Rb3 {[%clk 0:00:25.7]} 30... fxe3+ {[%clk 0:01:21.4]} 31.
Nxe3 {[%clk 0:00:25.6]} 31... Rxh4 {[%clk 0:01:21.2]} 32. Kg3 {[%clk 0:00:24.1]}
32... Rf4 {[%clk 0:01:04.2]} 33. Bxe5 {[%clk 0:00:23.2]} 33... Bxe3 {[%clk
0:00:59.4]} 34. Rxe3 {[%clk 0:00:22.6]} 34... Rc4 {[%clk 0:00:56.6]} 35. f4
{[%clk 0:00:23]} 35... b3 {[%clk 0:00:46.5]} 36. Rxb3 {[%clk 0:00:21.1]} 36...
Rxc2 {[%clk 0:00:39.5]} 37. Rxc2 {[%clk 0:00:20.6]} 37... Bxc2 {[%clk
0:00:40.4]} 38. Rb6 {[%clk 0:00:21.2]} 38... Bxa4 {[%clk 0:00:29.1]} 39. Bd5+
{[%clk 0:00:21]} 39... Kh7 {[%clk 0:00:24.7]} 40. Rxa6 {[%clk 0:00:20.8]} 40...
Bd7 {[%clk 0:00:20.3]} 41. Ra7 {[%clk 0:00:21]} 41... Bf5 {[%clk 0:00:19.2]} 42.
Kh4 {[%clk 0:00:21.3]} 42... Bd3 {[%clk 0:00:16.7]} 43. Kxh5 {[%clk 0:00:20]}
43... Bg6+ {[%clk 0:00:16.6]} 44. Kh4 {[%clk 0:00:20.1]} 44... Bd3 {[%clk
0:00:16.9]} 45. Bc6 {[%clk 0:00:19]} 45... Kg6 {[%clk 0:00:16.8]} 46. Bxe8+
{[%clk 0:00:18.9]} 46... Rxe8 {[%clk 0:00:15.9]} 47. Rxg7+ {[%clk 0:00:19.8]}
47... Kf5 {[%clk 0:00:16.4]} 48. Rf7+ {[%clk 0:00:20.4]} 48... Ke4 {[%clk
0:00:16.8]} 49. g6 {[%clk 0:00:19.3]} 49... Kf3 {[%clk 0:00:17.1]} 50. Kg5
{[%clk 0:00:19.1]} 50... Rg8 {[%clk 0:00:16.6]} 51. g7 {[%clk 0:00:19.2]} 51...
Bc4 {[%clk 0:00:15.9]} 52. Kf6 {[%clk 0:00:19.4]} 52... Bxf7 {[%clk 0:00:15]}
53. Kxf7 {[%clk 0:00:20.3]} 53... Ra8 {[%clk 0:00:14.7]} 54. g8=Q {[%clk
0:00:20.5]} 54... Ra7+ {[%clk 0:00:14.9]} 55. Kg6 {[%clk 0:00:20.2]} 1-0

[Event "*** Titled Tuesday Blitz"]
[Site "Chess.com"]
[Date "2020.04.28"]
[Round "5"]
[White "Richarzard69"]
[Black "WinningButNotReally"]
[Result "0-1"]
[WhiteElo "2235"]
[BlackElo "2412"]
[TimeControl "180+1"]
[EndTime "10:56:08 PDT"]
[Termination "WinningButNotReally won by checkmate"]

1. Nf3 {[%clk 0:03:00.9]} 1... Nf6 {[%clk 0:02:56.3]} 2. c4 {[%clk 0:03:01.2]}
2... c5 {[%clk 0:02:55.4]} 3. Nc3 {[%clk 0:02:59.5]} 3... Nc6 {[%clk 0:02:55.3]}
4. d4 {[%clk 0:02:59.1]} 4... cxd4 {[%clk 0:02:54.3]} 5. Nxd4 {[%clk 0:03:00]}
5... g6 {[%clk 0:02:54.7]} 6. g3 {[%clk 0:03:00]} 6... Bg7 {[%clk 0:02:54.5]} 7.
Bg2 {[%clk 0:03:00.6]} 7... O-O {[%clk 0:02:54.7]} 8. O-O {[%clk 0:03:01.1]}
8... Nxd4 {[%clk 0:02:54.9]} 9. Qxd4 {[%clk 0:03:00.6]} 9... d6 {[%clk
0:02:55.3]} 10. Rd1 {[%clk 0:02:59.6]} 10... a6 {[%clk 0:02:52.5]} 11. Qd3
{[%clk 0:02:58.1]} 11... Be6 {[%clk 0:02:51]} 12. Bxb7 {[%clk 0:02:45.9]} 12...
Ra7 {[%clk 0:02:50.9]} 13. Bg2 {[%clk 0:02:42.3]} 13... Rc7 {[%clk 0:02:44.7]}
14. Nd5 {[%clk 0:02:39.1]} 14... Bxd5 {[%clk 0:02:41.8]} 15. cxd5 {[%clk
0:02:37.5]} 15... a5 {[%clk 0:02:41.4]} 16. Bd2 {[%clk 0:02:27.6]} 16... Rb7
{[%clk 0:02:36.6]} 17. Bc3 {[%clk 0:02:24.3]} 17... Qb6 {[%clk 0:02:28]} 18. e4
{[%clk 0:02:04.5]} 18... h5 {[%clk 0:02:09.6]} 19. h3 {[%clk 0:02:02]} 19... Rc8
{[%clk 0:02:07.7]} 20. Rac1 {[%clk 0:01:51.3]} 20... Rbc7 {[%clk 0:01:23.1]} 21.
Qd2 {[%clk 0:01:40.7]} 21... Qb5 {[%clk 0:01:16.1]} 22. Bf1 {[%clk 0:01:18]}
22... Qa4 {[%clk 0:01:01.4]} 23. f3 {[%clk 0:00:59.5]} 23... h4 {[%clk
0:00:43.9]} 24. g4 {[%clk 0:00:52.5]} 24... Qxa2 {[%clk 0:00:31.1]} 25. Ba6
{[%clk 0:00:45.8]} 25... Rb8 {[%clk 0:00:27.8]} 26. e5 {[%clk 0:00:35.8]} 26...
dxe5 {[%clk 0:00:19.1]} 27. Bxe5 {[%clk 0:00:36.7]} 27... Rxc1 {[%clk 0:00:19]}
28. Rxc1 {[%clk 0:00:36.4]} 28... Rd8 {[%clk 0:00:19]} 29. Bc4 {[%clk
0:00:34.7]} 29... Qa4 {[%clk 0:00:17.8]} 30. b3 {[%clk 0:00:32.9]} 30... Qb4
{[%clk 0:00:17]} 31. Qd4 {[%clk 0:00:26.1]} 31... a4 {[%clk 0:00:14.5]} 32. g5
{[%clk 0:00:22.9]} 32... Nh5 {[%clk 0:00:13.7]} 33. Bxg7 {[%clk 0:00:22.8]}
33... Nxg7 {[%clk 0:00:14.6]} 34. bxa4 {[%clk 0:00:21]} 34... Qxa4 {[%clk
0:00:14.5]} 35. Qe5 {[%clk 0:00:19.3]} 35... Qd7 {[%clk 0:00:14.4]} 36. Re1
{[%clk 0:00:18.4]} 36... Qxh3 {[%clk 0:00:14.4]} 37. d6 {[%clk 0:00:15.4]} 37...
Rxd6 {[%clk 0:00:12.5]} 38. Bxf7+ {[%clk 0:00:12]} 38... Kh7 {[%clk 0:00:11.4]}
39. Qxe7 {[%clk 0:00:12.9]} 39... Qg3+ {[%clk 0:00:11.4]} 40. Kh1 {[%clk
0:00:12.4]} 40... h3 {[%clk 0:00:10]} 41. Bg8+ {[%clk 0:00:07.9]} 41... Kxg8
{[%clk 0:00:08.5]} 42. Qe2 {[%clk 0:00:03.6]} 42... Re6 {[%clk 0:00:06.3]} 43.
Qa2 {[%clk 0:00:03.2]} 43... Qxe1+ {[%clk 0:00:04.7]} 44. Kh2 {[%clk 0:00:02.5]}
44... Qe2+ {[%clk 0:00:04.1]} 45. Kxh3 {[%clk 0:00:03.4]} 45... Qxa2 {[%clk
0:00:02.8]} 46. Kg4 {[%clk 0:00:04.3]} 46... Qb3 {[%clk 0:00:03.1]} 47. Kh4
{[%clk 0:00:05.2]} 47... Qb4+ {[%clk 0:00:03.9]} 48. f4 {[%clk 0:00:05.3]} 48...
Re5 {[%clk 0:00:04.8]} 49. Kh3 {[%clk 0:00:06]} 49... Rf5 {[%clk 0:00:05.4]} 50.
Kg4 {[%clk 0:00:06.5]} 50... Rxf4+ {[%clk 0:00:06.3]} 51. Kh3 {[%clk 0:00:07.3]}
51... Qe4 {[%clk 0:00:06.8]} 52. Kh2 {[%clk 0:00:08.2]} 52... Rf3 {[%clk
0:00:07.7]} 53. Kh1 {[%clk 0:00:09.1]} 53... Qe2 {[%clk 0:00:08.5]} 54. Kg1
{[%clk 0:00:09.4]} 54... Rf1# {[%clk 0:00:09.4]} 0-1

[Event "*** Titled Tuesday Blitz"]
[Site "Chess.com"]
[Date "2020.04.28"]
[Round "5"]
[White "Kezin_Roman"]
[Black "rasmussvane"]
[Result "1-0"]
[WhiteElo "2707"]
[BlackElo "2852"]
[TimeControl "180+1"]
[EndTime "10:56:10 PDT"]
[Termination "Kezin_Roman won by resignation"]

1. d4 {[%clk 0:03:00.9]} 1... d5 {[%clk 0:02:58.1]} 2. c4 {[%clk 0:02:58.3]}
2... e6 {[%clk 0:02:57.5]} 3. Nf3 {[%clk 0:02:57.9]} 3... a6 {[%clk 0:02:57.6]}
4. g3 {[%clk 0:02:53.4]} 4... dxc4 {[%clk 0:02:57.3]} 5. Bg2 {[%clk 0:02:53.9]}
5... b5 {[%clk 0:02:57.9]} 6. Ne5 {[%clk 0:02:36.1]} 6... c6 {[%clk 0:02:57.7]}
7. a4 {[%clk 0:02:30.4]} 7... Bb7 {[%clk 0:02:54.8]} 8. Nc3 {[%clk 0:02:25.9]}
8... Qc8 {[%clk 0:02:31.7]} 9. O-O {[%clk 0:02:17.4]} 9... Nf6 {[%clk
0:02:30.4]} 10. e4 {[%clk 0:02:13.8]} 10... Be7 {[%clk 0:02:25.4]} 11. d5 {[%clk
0:01:53.2]} 11... O-O {[%clk 0:01:52.8]} 12. Bg5 {[%clk 0:00:58.1]} 12... h6
{[%clk 0:01:29.3]} 13. d6 {[%clk 0:00:47.2]} 13... Rd8 {[%clk 0:00:47.3]} 14.
Bxf6 {[%clk 0:00:45.9]} 14... Bxf6 {[%clk 0:00:44.8]} 15. Ng4 {[%clk 0:00:46.4]}
15... Bxc3 {[%clk 0:00:39.4]} 16. bxc3 {[%clk 0:00:47.3]} 16... c5 {[%clk
0:00:38.3]} 17. f4 {[%clk 0:00:40.2]} 17... Nd7 {[%clk 0:00:35.5]} 18. f5 {[%clk
0:00:34.4]} 18... exf5 {[%clk 0:00:33.7]} 19. Rxf5 {[%clk 0:00:34.3]} 19... Re8
{[%clk 0:00:31.2]} 20. Nxh6+ {[%clk 0:00:32.6]} 20... gxh6 {[%clk 0:00:29.1]}
21. Qh5 {[%clk 0:00:28.9]} 21... Ne5 {[%clk 0:00:23.9]} 22. Rxe5 {[%clk
0:00:25.5]} 22... Rxe5 {[%clk 0:00:24.8]} 23. Qxe5 {[%clk 0:00:26]} 23... Qe6
{[%clk 0:00:24.1]} 24. Qxe6 {[%clk 0:00:20.4]} 24... fxe6 {[%clk 0:00:23.7]} 25.
axb5 {[%clk 0:00:18.6]} 25... Kf7 {[%clk 0:00:19.1]} 26. e5 {[%clk 0:00:10]}
26... Bxg2 {[%clk 0:00:15.2]} 27. Kxg2 {[%clk 0:00:10.9]} 27... a5 {[%clk
0:00:15.7]} 28. b6 {[%clk 0:00:09.8]} 28... Kg6 {[%clk 0:00:13.7]} 29. b7 {[%clk
0:00:06.5]} 29... Rb8 {[%clk 0:00:13.9]} 30. Rxa5 {[%clk 0:00:05.7]} 30... Rxb7
{[%clk 0:00:14.4]} 31. Rxc5 {[%clk 0:00:06.3]} 31... Kf5 {[%clk 0:00:12.7]} 32.
Kh3 {[%clk 0:00:05.2]} 32... h5 {[%clk 0:00:09.3]} 33. Kh4 {[%clk 0:00:04.8]}
33... Rb2 {[%clk 0:00:09.5]} 34. h3 {[%clk 0:00:04.9]} 34... Rd2 {[%clk
0:00:08.1]} 35. Rxc4 {[%clk 0:00:04]} 35... Kxe5 {[%clk 0:00:07.7]} 36. Rd4
{[%clk 0:00:04.4]} 36... Rxd4+ {[%clk 0:00:02.6]} 37. cxd4+ {[%clk 0:00:05.3]}
37... Kxd6 {[%clk 0:00:03.4]} 38. g4 {[%clk 0:00:04.8]} 38... Kd5 {[%clk
0:00:04.3]} 39. gxh5 {[%clk 0:00:04.4]} 39... Kxd4 {[%clk 0:00:05.2]} 40. h6
{[%clk 0:00:05]} 40... e5 {[%clk 0:00:06]} 41. h7 {[%clk 0:00:05.5]} 41... e4
{[%clk 0:00:06.9]} 42. h8=Q+ {[%clk 0:00:06.4]} 42... Kd3 {[%clk 0:00:07.8]} 43.
Kg3 {[%clk 0:00:06.5]} 43... e3 {[%clk 0:00:08.7]} 44. Qd8+ {[%clk 0:00:07.4]}
44... Ke2 {[%clk 0:00:08.9]} 45. Qe7 {[%clk 0:00:08.2]} 45... Kd2 {[%clk
0:00:09.1]} 46. Kf3 {[%clk 0:00:08.3]} 46... e2 {[%clk 0:00:09.5]} 47. Qxe2+
{[%clk 0:00:08.7]} 1-0

[Event "*** Titled Tuesday Blitz"]
[Site "Chess.com"]
[Date "2020.04.28"]
[Round "5"]
[White "vanyakuba"]
[Black "Valuebet2000"]
[Result "0-1"]
[WhiteElo "2403"]
[BlackElo "2573"]
[TimeControl "180+1"]
[EndTime "10:56:10 PDT"]
[Termination "Valuebet2000 won on time"]

1. e4 {[%clk 0:03:00.6]} 1... c6 {[%clk 0:02:57.7]} 2. d4 {[%clk 0:03:00.8]}
2... d5 {[%clk 0:02:57.5]} 3. exd5 {[%clk 0:03:01.7]} 3... cxd5 {[%clk
0:02:57.6]} 4. c4 {[%clk 0:03:02.6]} 4... Nf6 {[%clk 0:02:57.4]} 5. Nc3 {[%clk
0:03:03.1]} 5... g6 {[%clk 0:02:57.7]} 6. cxd5 {[%clk 0:03:02.9]} 6... Nxd5
{[%clk 0:02:57.1]} 7. Qb3 {[%clk 0:03:03.4]} 7... Nb6 {[%clk 0:02:51.6]} 8. d5
{[%clk 0:03:03.3]} 8... Bg7 {[%clk 0:02:50.9]} 9. Be3 {[%clk 0:03:03.5]} 9...
O-O {[%clk 0:02:49.7]} 10. Rd1 {[%clk 0:03:03.4]} 10... Bf5 {[%clk 0:02:33.9]}
11. a4 {[%clk 0:02:56.1]} 11... N8d7 {[%clk 0:02:22.6]} 12. a5 {[%clk
0:02:32.9]} 12... Nc8 {[%clk 0:02:22.2]} 13. Qa3 {[%clk 0:02:29.1]} 13... Nd6
{[%clk 0:02:19.5]} 14. Nf3 {[%clk 0:02:16.3]} 14... Qc7 {[%clk 0:02:00.7]} 15.
Nd4 {[%clk 0:02:10.4]} 15... Nc4 {[%clk 0:01:59.8]} 16. Bxc4 {[%clk 0:02:05.4]}
16... Qxc4 {[%clk 0:02:00.7]} 17. Nxf5 {[%clk 0:02:05.2]} 17... gxf5 {[%clk
0:02:00.2]} 18. Qxe7 {[%clk 0:01:32.1]} 18... f4 {[%clk 0:01:59.8]} 19. Qxd7
{[%clk 0:01:13.5]} 19... fxe3 {[%clk 0:01:59.9]} 20. fxe3 {[%clk 0:01:08]} 20...
Rad8 {[%clk 0:01:39.6]} 21. Qf5 {[%clk 0:00:51.4]} 21... Rfe8 {[%clk 0:01:36.5]}
22. Kf2 {[%clk 0:00:30.4]} 22... Re5 {[%clk 0:01:33.7]} 23. Qd3 {[%clk 0:00:28]}
23... Qb3 {[%clk 0:01:33.2]} 24. Rd2 {[%clk 0:00:20.1]} 24... Qb4 {[%clk
0:01:00.4]} 25. g3 {[%clk 0:00:13.6]} 25... Qxa5 {[%clk 0:00:57.6]} 26. Re1
{[%clk 0:00:12.3]} 26... Qb6 {[%clk 0:00:50.5]} 27. Kg2 {[%clk 0:00:10.5]} 27...
Rde8 {[%clk 0:00:39.8]} 28. e4 {[%clk 0:00:08.7]} 28... Rd8 {[%clk 0:00:40]} 29.
Rf2 {[%clk 0:00:06]} 29... Qg6 {[%clk 0:00:39.1]} 30. Ref1 {[%clk 0:00:05.7]}
30... Re7 {[%clk 0:00:36.3]} 31. Rf5 {[%clk 0:00:05.2]} 31... Rde8 {[%clk
0:00:34.3]} 32. Qf3 {[%clk 0:00:02.9]} 32... Bxc3 {[%clk 0:00:25]} 33. bxc3
{[%clk 0:00:02.4]} 33... Rxe4 {[%clk 0:00:25.3]} 34. Rxf7 {[%clk 0:00:02.7]}
34... Re2+ {[%clk 0:00:24.1]} 35. Kh1 {[%clk 0:00:03.1]} 35... Qh6 {[%clk
0:00:20.4]} 36. h4 {[%clk 0:00:02]} 36... R2e7 {[%clk 0:00:16.6]} 37. Rxe7
{[%clk 0:00:02]} 37... Rxe7 {[%clk 0:00:17.5]} 38. Qg4+ {[%clk 0:00:02.5]} 38...
Qg6 {[%clk 0:00:11.1]} 39. Qc8+ {[%clk 0:00:02.6]} 39... Re8 {[%clk 0:00:11.2]}
40. Qh3 {[%clk 0:00:01.9]} 40... Qd6 {[%clk 0:00:10.1]} 0-1